bitfinex/quotes_SOLUSD_20241101
["timestamp","ask_amount","ask_price","bid_price","bid_amount"]
[1730469008360,0.25098,172.15,172.05,15.9569]
[1730469008567,6.6521296,172.21,172.05,15.9569]
[1730469008568,24.301661,172.21,172.14,11.8427314]
[1730469008771,12.4589296,172.21,172.18,11.8427314]
[1730469009449,6.4051296,172.21,172.19,11.8427314]
[1730469009668,6.4051296,172.21,172.18,11.8427314]
[1730469009868,0.5983296,172.21,172.19,11.8427314]
[1730469010246,6.4054296,172.21,172.18,11.8427314]
[1730469010455,0.5983296,172.21,172.19,11.8427314]
[1730469010655,0.5983296,172.21,172.18,11.8427314]
[1730469011172,0.5983296,172.21,172.19,11.8427314]
[1730469011973,0.5983296,172.21,172.2,11.8427314]
[1730469012583,0.5983296,172.21,172.18,11.8427314]
[1730469012883,0.5983296,172.21,172.2,11.8427314]
[1730469013569,0.5983296,172.21,172.2,32.7368314]
[1730469013758,0.5983296,172.21,172.2,50.8915628]
[1730469014374,0.5983296,172.21,172.2,70.8915628]
[1730469014869,0.5983296,172.21,172.2,94.6684468]
[1730469015075,0.03,172.24,172.23,11.8427314]
[1730469016151,0.03,172.24,172.23,17.6488314]
[1730469016355,0.03,172.24,172.22,17.6492314]
[1730469016772,0.03,172.24,172.21,11.8427314]
[1730469017465,0.03,172.24,172.22,11.8427314]
[1730469017659,0.03,172.24,172.16,65.4911]
[1730469018266,0.03,172.24,172.22,11.8427314]
[1730469018467,0.03,172.24,172.21,11.8427314]
[1730469018684,0.03,172.24,172.2,11.8427314]
[1730469019267,11.8427314,172.21,172.13,11.8427314]
[1730469019483,11.8427314,172.16,172.12,15.1998]
[1730469019797,11.8427314,172.17,172.12,47.3769314]
[1730469019995,5.8069,172.21,172.13,11.8427314]
[1730469020165,0.12549,172.2,172.12,35.5342]
[1730469020371,11.8427314,172.16,172.12,35.5342]
[1730469020584,0.12549,172.2,172.12,35.5342]
[1730469020585,11.8427314,172.17,172.12,35.5342]
[1730469021166,11.8427314,172.16,172.12,29.7245]
[1730469021364,11.8427314,172.14,172.12,14.5247]
[1730469021567,11.8427314,172.14,172.11,5.8101]
[1730469021782,11.8427314,172.13,172.09,14.5272]
[1730469021981,11.8427314,172.11,172.09,14.5272]
[1730469022168,11.8427314,172.16,172.1,11.8427314]
[1730469022369,14.5158,172.23,172.1,11.8427314]
[1730469022370,11.8427314,172.15,172.1,11.8427314]
[1730469022566,0.12549,172.22,172.1,18.91841841]
[1730469022771,24.153354,172.22,172.09,14.5272]
[1730469023170,24.027864,172.2,172.07,15.1998]
[1730469023370,0.12549,172.18,172.07,35.5401]
[1730469023800,18.91841841,172.11,172.07,35.5401]
[1730469024102,0.12549,172.18,172.07,35.5401]
[1730469024103,18.91841841,172.1,172.07,35.5401]
[1730469024476,18.91841841,172.13,172.08,18.91841841]
[1730469024681,18.91841841,172.15,172.09,18.91841841]
[1730469024984,18.91841841,172.16,172.1,18.91841841]
[1730469025303,18.91841841,172.16,172.11,18.91841841]
[1730469025680,5.8072,172.2,172.11,18.91841841]
[1730469025681,18.91841841,172.17,172.11,18.91841841]
[1730469025882,18.91841841,172.19,172.13,18.91841841]
[1730469026081,18.91841841,172.2,172.14,18.91841841]
[1730469026303,18.91841841,172.19,172.13,18.91841841]
[1730469026606,18.91841841,172.18,172.12,18.91841841]
[1730469026787,18.91841841,172.19,172.13,18.91841841]
[1730469027103,18.91841841,172.21,172.16,18.91841841]
[1730469027294,18.91841841,172.19,172.13,18.91841841]
[1730469027498,18.91841841,172.21,172.15,18.91841841]
[1730469027704,18.91841841,172.22,172.16,18.91841841]
[1730469027908,18.91841841,172.21,172.16,18.91841841]
[1730469028383,18.91841841,172.19,172.14,18.91841841]
[1730469028786,18.91841841,172.2,172.14,18.91841841]
[1730469028986,18.91841841,172.21,172.16,18.91841841]
[1730469029204,18.91841841,172.21,172.15,18.91841841]
[1730469029585,18.91841841,172.2,172.15,18.91841841]
[1730469029781,18.91841841,172.21,172.15,18.91841841]
[1730469030009,18.91841841,172.22,172.17,18.91841841]
[1730469030209,5.8358,172.24,172.16,15.0577]
[1730469030210,18.94841841,172.24,172.16,15.0577]
[1730469030388,18.91841841,172.23,172.17,18.91841841]
[1730469030713,18.91841841,172.21,172.18,14.5196]
[1730469031307,18.91841841,172.19,172.18,14.5196]
[1730469031615,18.91841841,172.19,172.14,14.5222]
[1730469031819,18.91841841,172.19,172.14,33.44061841]
[1730469032403,18.91841841,172.19,172.14,14.5222]
[1730469033391,0.25098,172.23,172.14,14.5222]
[1730469033392,18.91841841,172.17,172.14,20.3314]
[1730469034010,0.12549,172.21,172.14,20.3314]
[1730469034011,18.91841841,172.18,172.14,20.3314]
[1730469034327,18.91841841,172.16,172.14,20.3314]
[1730469034621,18.91841841,172.17,172.14,20.3314]
[1730469035116,18.91841841,172.18,172.14,20.3314]
[1730469035295,18.91841841,172.17,172.14,20.3314]
[1730469035496,18.91841841,172.19,172.14,14.5222]
[1730469035906,18.91841841,172.21,172.16,18.91841841]
[1730469036119,18.91841841,172.2,172.15,15.091]
[1730469036294,18.91841841,172.18,172.14,14.5222]
[1730469036797,18.91841841,172.17,172.14,14.5222]
[1730469037008,18.91841841,172.16,172.14,14.5222]
[1730469037196,18.91841841,172.18,172.14,14.5222]
[1730469037399,18.91841841,172.15,172.14,14.5222]
[1730469037800,18.91841841,172.16,172.14,14.5222]
[1730469038299,18.91841841,172.15,172.1,20.3363]
[1730469038507,18.91841841,172.13,172.1,20.3363]
[1730469038704,18.91841841,172.15,172.1,20.3363]
[1730469039000,18.91841841,172.13,172.1,20.3363]
[1730469039205,18.91841841,172.12,172.1,14.5259]
[1730469039404,18.91841841,172.11,172.08,11.87814038]
[1730469039696,18.91841841,172.09,172.08,6.06694038]
[1730469040114,14.64669,172.17,172.08,26.40624038]
[1730469040115,18.91841841,172.12,172.08,26.40624038]
[1730469040622,18.91841841,172.14,172.08,45.32465879]
[1730469040821,0.12549,172.16,172.08,45.32465879]
[1730469040822,18.91841841,172.15,172.09,18.91841841]
[1730469041004,18.91841841,172.12,172.08,26.40624038]
[1730469041412,18.91841841,172.1,172.08,26.40624038]
[1730469041812,19.16939841,172.09,172.08,6.06694038]
[1730469042620,18.91841841,172.09,172.03,5.8126]
[1730469042852,18.91841841,172.05,172.04,6.0700411]
[1730469043196,19.04390841,172.05,172.04,6.0700411]
[1730469043606,19.04390841,172.05,172.02,5.8131]
[1730469043806,18.91841841,172.03,172.02,5.8131]
[1730469044011,18.91841841,172.03,172.0,14.5348]
[1730469044214,18.91841841,172.01,172.0,14.5348]
[1730469044802,18.91841841,172.02,172.0,14.5348]
[1730469045908,18.91841841,172.01,172.0,14.5348]
[1730469046534,18.91841841,172.02,172.0,14.5348]
[1730469046744,18.91841841,172.03,172.0,14.5348]
[1730469047241,18.91841841,172.01,172.0,14.5348]
[1730469047424,0.25098,172.08,172.0,14.5348]
[1730469047425,18.91841841,172.03,172.0,14.5348]
[1730469047821,18.91841841,172.01,172.0,14.5348]
[1730469048135,0.12549,172.08,172.0,14.5348]
[1730469048136,18.91841841,172.03,172.0,14.5348]
[1730469048352,18.91841841,172.04,172.0,14.5348]
[1730469048638,18.91841841,172.03,172.0,14.5348]
[1730469048834,18.91841841,172.02,172.0,14.5348]
[1730469049145,0.37647,172.09,172.0,14.5348]
[1730469049146,18.91841841,172.03,172.0,14.5348]
[1730469049335,18.91841841,172.02,172.0,14.5348]
[1730469049846,18.91841841,172.05,172.0,33.45321841]
[1730469050149,18.91841841,172.06,172.0,33.45321841]
[1730469050311,18.91841841,172.05,172.0,14.5348]
[1730469050515,18.91841841,172.06,172.01,18.91841841]
[1730469050717,18.91841841,172.08,172.03,18.91841841]
[1730469051138,18.91841841,172.07,172.01,38.91841841]
[1730469051523,18.91841841,172.06,172.01,20.0]
[1730469051836,18.91841841,172.06,172.0,33.45321841]
[1730469051837,18.91841841,172.02,172.0,14.5348]
[1730469052838,18.91841841,172.01,172.0,14.5348]
[1730469053919,18.91841841,172.01,171.94,47.99821841]
[1730469054227,18.91841841,172.01,171.95,38.91841841]
[1730469054432,18.91841841,172.0,171.95,38.91841841]
[1730469054937,18.91841841,172.03,171.97,18.91841841]
[1730469055127,18.91841841,172.01,171.96,18.91841841]
[1730469055323,18.91841841,172.02,171.96,18.91841841]
[1730469055918,18.91841841,172.03,171.98,18.91841841]
[1730469056114,18.91841841,172.01,171.96,49.43]
[1730469056531,18.91841841,172.02,171.96,68.34841841]
[1730469057240,18.91841841,172.01,171.96,68.34841841]
[1730469057430,18.91841841,172.0,171.96,49.43]
[1730469057830,18.91841841,172.01,171.96,49.43]
[1730469058149,18.91841841,172.01,171.96,68.34841841]
[1730469058331,18.91841841,172.02,171.96,68.34841841]
[1730469058533,18.91841841,172.02,171.97,18.91841841]
[1730469058726,18.91841841,172.03,171.98,18.91841841]
[1730469058928,18.91841841,172.04,171.98,18.91841841]
[1730469059636,18.91841841,172.04,171.99,68.33971841]
[1730469059850,18.91841841,172.04,171.99,49.4213]
[1730469060631,18.91841841,172.03,171.99,49.4213]
[1730469060834,18.91841841,172.04,171.99,68.33971841]
[1730469061053,18.91841841,172.02,171.99,49.4213]
[1730469061422,18.91841841,172.04,171.99,47.98981841]
[1730469062274,18.91841841,172.03,171.99,29.0714]
[1730469062660,18.91841841,172.02,171.99,29.0714]
[1730469062980,0.12549,172.08,171.96,49.43]
[1730469062981,18.91841841,172.0,171.96,49.43]
[1730469063151,18.91841841,171.99,171.96,49.43]
[1730469064971,5.8115,172.07,171.96,20.3535]
[1730469064972,18.91841841,171.97,171.96,20.3535]
[1730469065687,18.91841841,171.99,171.96,20.3535]
[1730469065891,18.91841841,172.0,171.96,20.3535]
[1730469066198,18.91841841,172.04,171.98,18.91841841]
[1730469066484,18.91841841,172.04,171.99,18.91841841]
[1730469066883,18.91841841,172.06,172.0,18.91841841]
[1730469067060,18.91841841,172.05,172.0,18.91841841]
[1730469067570,31.23991841,172.1,172.0,18.91841841]
[1730469067571,18.91841841,172.06,172.0,18.91841841]
[1730469068093,18.91841841,172.06,172.01,49.4156]
[1730469068463,18.91841841,172.06,172.01,68.33401841]
[1730469068664,18.91841841,172.08,172.02,18.91841841]
[1730469068869,18.91841841,172.09,172.03,18.91841841]
[1730469069071,18.91841841,172.1,172.05,18.91841841]
[1730469069265,15.7809,172.16,172.05,18.91841841]
[1730469069266,18.91841841,172.11,172.05,18.91841841]
[1730469069472,18.91841841,172.11,172.01,49.4156]
[1730469069473,18.91841841,172.11,172.06,18.91841841]
[1730469069678,18.91841841,172.11,172.05,18.91841841]
[1730469069889,18.91841841,172.11,172.06,18.91841841]
[1730469070385,6.5368,172.18,172.08,18.91841841]
[1730469070386,18.91841841,172.13,172.08,18.91841841]
[1730469071772,18.91841841,172.14,172.08,34.89771841]
[1730469072079,18.91841841,172.14,172.09,18.91841841]
[1730469072278,18.91841841,172.15,172.11,20.3357]
[1730469072669,18.91841841,172.16,172.11,20.3357]
[1730469072868,18.91841841,172.17,172.11,39.25411841]
[1730469073074,5.8069,172.21,172.11,39.25411841]
[1730469073075,18.91841841,172.16,172.11,39.25411841]
[1730469073292,18.91841841,172.15,172.11,20.3357]
[1730469073473,18.91841841,172.13,172.11,20.3357]
[1730469074684,18.91841841,172.12,172.11,14.5255]
[1730469075369,18.91841841,172.12,172.09,5.8109]
[1730469075577,18.91841841,172.11,172.09,5.8109]
[1730469076404,18.91841841,172.11,172.09,20.3381]
[1730469076705,18.91841841,172.12,172.09,20.3381]
[1730469076880,18.91841841,172.13,172.08,18.91841841]
[1730469077597,18.91841841,172.12,172.07,47.97631841]
[1730469078404,18.91841841,172.11,172.07,49.3983]
[1730469078602,5.8091,172.15,172.07,49.3983]
[1730469078603,18.91841841,172.09,172.07,49.3983]
[1730469078788,18.91841841,172.1,172.07,49.3983]
[1730469078989,18.91841841,172.09,172.07,20.3404]
[1730469079189,18.91841841,172.08,172.07,20.3404]
[1730469079386,18.91841841,172.08,172.05,5.812]
[1730469079586,18.91841841,172.06,172.05,5.812]
[1730469079974,18.91841841,172.06,172.03,14.5318]
[1730469080180,18.91841841,172.05,172.04,5.8125]
[1730469080379,18.91841841,172.05,172.03,14.5318]
[1730469080584,18.91841841,172.04,172.03,14.5318]
[1730469080892,18.91841841,172.04,172.01,5.8136]
[1730469081089,18.91841841,172.04,172.01,20.3476]
[1730469082293,18.91841841,172.04,172.01,14.534]
[1730469082693,18.91841841,172.06,172.01,33.45241841]
[1730469082896,18.91841841,172.1,172.05,18.91841841]
[1730469083100,18.91841841,172.11,172.05,18.91841841]
[1730469083302,18.91841841,172.12,172.07,18.91841841]
[1730469083497,22.2035,172.15,172.02,43.776884]
[1730469083498,18.91841841,172.11,172.05,18.91841841]
[1730469084000,18.91841841,172.1,172.05,18.91841841]
[1730469084311,18.91841841,172.1,172.04,18.91841841]
[1730469084496,18.91841841,172.09,172.05,20.3428]
[1730469084707,18.91841841,172.1,172.05,39.26121841]
[1730469085000,18.91841841,172.1,172.05,20.3428]
[1730469085315,18.91841841,172.11,172.06,18.91841841]
[1730469085604,18.91841841,172.13,172.08,18.91841841]
[1730469085804,18.91841841,172.14,172.08,18.91841841]
[1730469085997,18.91841841,172.13,172.08,18.91841841]
[1730469086200,18.91841841,172.14,172.08,18.91841841]
[1730469086381,18.91841841,172.14,172.09,18.91841841]
[1730469088399,18.91841841,172.15,172.1,18.91841841]
[1730469089000,16.21538412,172.15,172.1,16.21538412]
[1730469089506,16.21538412,172.13,172.11,20.3357]
[1730469089893,16.21538412,172.14,172.11,20.3357]
[1730469090518,16.21538412,172.14,172.11,14.5255]
[1730469091635,16.21538412,172.15,172.11,14.5255]
[1730469091805,16.21538412,172.13,172.11,14.5255]
[1730469092699,10.1349179,172.15,172.11,14.5255]
[1730469093119,10.1349179,172.12,172.08,20.3393]
[1730469093494,5.93299,172.19,172.08,14.5281]
[1730469093689,10.1349179,172.1,172.06,20.3414]
[1730469094413,10.1349179,172.09,172.06,20.3414]
[1730469095113,10.1349179,172.09,172.06,14.5298]
[1730469095696,10.1349179,172.13,172.08,10.1349179]
[1730469095893,10.1349179,172.15,172.1,10.1349179]
[1730469096102,10.1349179,172.17,172.12,10.1349179]
[1730469096510,16.21233678,172.16,172.09,6.1533]
[1730469097325,16.21233678,172.17,172.12,20.3346]
[1730469097496,5.8077,172.19,172.12,20.3346]
[1730469097497,16.21233678,172.15,172.12,20.3346]
[1730469098507,16.21233678,172.16,172.12,14.5247]
[1730469099312,16.21233678,172.15,172.12,14.5247]
[1730469099507,16.21233678,172.14,172.12,14.5247]
[1730469099709,16.21233678,172.16,172.12,14.5247]
[1730469101521,16.21233678,172.18,172.13,16.21233678]
[1730469101820,16.21233678,172.17,172.12,30.73703678]
[1730469102022,16.21233678,172.16,172.12,14.5247]
[1730469103003,5.8083,172.17,172.12,14.5247]
[1730469103004,16.21233678,172.17,172.12,30.73703678]
[1730469103418,16.21233678,172.17,172.13,16.21233678]
[1730469103626,16.21233678,172.18,172.13,16.21233678]
[1730469104002,16.21233678,172.18,172.14,5.8092]
[1730469104918,16.21233678,172.17,172.14,5.8092]
[1730469105113,16.21233678,172.15,172.1,16.21233678]
[1730469105628,16.21233678,172.14,172.09,36.55043678]
[1730469105930,16.21233678,172.15,172.1,16.21233678]
[1730469106133,16.21233678,172.15,172.11,20.3357]
[1730469107005,16.21233678,172.16,172.11,20.3357]
[1730469107326,16.21233678,172.16,172.11,36.54803678]
[1730469107701,16.21233678,172.15,172.11,20.3357]
[1730469108023,16.21233678,172.16,172.11,16.21233678]
[1730469108730,16.21233678,172.17,172.11,16.21233678]
[1730469109218,16.21233678,172.19,172.14,16.21233678]
[1730469110719,16.21233678,172.19,172.15,20.331]
[1730469110923,16.21233678,172.21,172.16,16.21233678]
[1730469111129,16.21233678,172.22,172.17,16.21233678]
[1730469111514,16.21233678,172.21,172.16,16.21233678]
[1730469111828,15.71233678,172.21,172.16,16.21233678]
[1730469112128,16.21233678,172.23,172.18,16.21233678]
[1730469112506,0.03,172.24,172.19,23.776884]
[1730469112712,0.03,172.24,172.23,16.21233678]
[1730469114324,0.03,172.24,172.23,22.01843678]
[1730469115834,0.03,172.24,172.23,45.79532078]
[1730469116019,0.03,172.24,172.23,81.29412078]
[1730469116947,0.03,172.24,172.23,75.19625054]
[1730469120045,0.03,172.24,172.23,15.92056654]
[1730469121332,0.03,172.24,172.22,14.5159]
[1730469122141,0.03,172.24,172.2,15.92156654]
[1730469122728,10.14446654,172.24,172.2,5.8071]
[1730469123430,10.11446654,172.21,172.18,5.8075]
[1730469123735,0.03,172.24,172.18,5.8075]
[1730469123736,0.03,172.24,172.2,10.11446654]
[1730469124042,0.03,172.24,172.23,10.11446654]
[1730469124344,0.03,172.24,172.23,15.92056654]
[1730469124727,0.03,172.24,172.23,39.69745054]
[1730469125249,0.03,172.24,172.23,56.25135054]
[1730469125543,0.03,172.24,172.23,76.25135054]
[1730469126235,0.03,172.24,172.23,87.56584254]
[1730469127836,0.03,172.24,172.23,87.81682254]
[1730469128042,11.18900205,172.31,172.24,44.153354]
[1730469128216,11.18900205,172.31,172.3,10.11446654]
[1730469128422,11.18900205,172.31,172.3,16.17706519]
[1730469129221,11.18900205,172.31,172.3,39.95394919]
[1730469130545,11.18900205,172.31,172.29,16.17706519]
[1730469130844,11.18900205,172.31,172.26,73.120684]
[1730469130845,11.18900205,172.31,172.3,16.17706519]
[1730469131155,11.18900205,172.31,172.3,39.95394919]
[1730469131439,11.18900205,172.31,172.29,16.17706519]
[1730469131737,11.18900205,172.31,172.26,36.49506519]
[1730469131948,27.36606724,172.31,172.26,36.49506519]
[1730469132137,11.18900205,172.31,172.26,36.49506519]
[1730469132449,11.18900205,172.31,172.27,16.17706519]
[1730469132651,11.18900205,172.31,172.28,20.3157]
[1730469133823,11.18900205,172.31,172.3,16.17706519]
[1730469134029,11.18900205,172.31,172.3,59.95394919]
[1730469135228,11.18900205,172.31,172.3,36.17706519]
[1730469135543,11.18900205,172.31,172.3,59.95394919]
[1730469135850,11.18900205,172.31,172.3,39.95394919]
[1730469136149,11.18900205,172.31,172.3,45.75774919]
[1730469136676,27.36606724,172.31,172.28,20.3154]
[1730469136854,16.17706519,172.3,172.28,20.3154]
[1730469137342,11.18900205,172.31,172.28,20.3154]
[1730469137551,11.18900205,172.31,172.3,16.17706519]
[1730469137731,11.18900205,172.31,172.3,22.68226519]
[1730469137930,11.18900205,172.31,172.3,84.21970438]
[1730469138143,11.18900205,172.31,172.3,104.21970438]
[1730469138347,11.18900205,172.31,172.3,87.91714919]
[1730469139250,11.18900205,172.31,172.3,81.41194919]
[1730469139766,11.18900205,172.31,172.3,97.71450438]
[1730469140124,11.18900205,172.31,172.3,97.96548438]
[1730469140328,0.5983296,172.38,172.31,44.153354]
[1730469140529,0.5983296,172.38,172.37,16.17706519]
[1730469142559,0.5983296,172.38,172.37,21.97846519]
[1730469143942,0.5983296,172.38,172.36,20.3058]
[1730469144964,0.5983296,172.38,172.37,36.17706519]
[1730469146674,0.5983296,172.38,172.37,21.97846519]
[1730469147044,0.5983296,172.38,172.37,45.75534919]
[1730469147943,0.5983296,172.38,172.37,65.75534919]
[1730469148142,13.8290296,172.38,172.36,14.5041]
[1730469148340,16.30255519,172.37,172.24,16.17706519]
[1730469148561,16.17706519,172.32,172.26,30.68956519]
[1730469148768,16.17706519,172.33,172.27,16.17706519]
[1730469149062,16.17706519,172.34,172.28,16.17706519]
[1730469149361,16.17706519,172.32,172.26,20.3176]
[1730469149564,16.17706519,172.28,172.26,20.3176]
[1730469149738,16.17706519,172.29,172.26,20.3176]
[1730469149937,16.17706519,172.3,172.26,20.3176]
[1730469151047,16.17706519,172.32,172.26,36.49466519]
[1730469151546,16.17706519,172.3,172.26,20.3176]
[1730469151954,16.17706519,172.31,172.26,20.3176]
[1730469152267,16.17706519,172.37,172.3,16.17706519]
[1730469152568,16.77539479,172.38,172.32,16.17706519]
[1730469152865,16.17706519,172.35,172.3,16.17706519]
[1730469153374,16.17650669,172.35,172.3,16.17650669]
[1730469153745,16.17650669,172.33,172.29,49.3353]
[1730469153949,16.17650669,172.32,172.29,49.3353]
[1730469154154,16.17650669,172.32,172.29,20.3145]
[1730469154353,16.17650669,172.31,172.27,5.8046]
[1730469154648,16.17650669,172.29,172.26,5.8051]
[1730469155069,16.17650669,172.32,172.26,36.49450669]
[1730469155439,0.12549,172.37,172.26,36.49450669]
[1730469155440,16.17650669,172.35,172.29,16.17650669]
[1730469155644,16.17650669,172.36,172.31,16.17650669]
[1730469155849,0.5983296,172.38,172.31,16.17650669]
[1730469156259,16.17650669,172.37,172.31,16.17650669]
[1730469156575,16.17650669,172.35,172.29,16.17650669]
[1730469156870,16.17650669,172.34,172.3,14.5095]
[1730469157171,16.17650669,172.35,172.3,14.5095]
[1730469157870,16.17650669,172.33,172.3,14.5095]
[1730469158057,0.58565154,172.37,172.32,16.17650669]
[1730469158248,0.58565154,172.37,172.33,16.17650669]
[1730469158448,16.76215823,172.37,172.31,16.17650669]
[1730469158648,16.17650669,172.36,172.3,30.68600669]
[1730469158951,16.17650669,172.34,172.3,20.3133]
[1730469159182,16.17650669,172.33,172.3,20.3133]
[1730469159467,6.38725154,172.37,172.3,20.3133]
[1730469159468,16.17650669,172.31,172.3,20.3133]
[1730469160574,16.17650669,172.31,172.27,20.3169]
[1730469160743,16.17650669,172.29,172.27,20.3169]
[1730469161259,16.17650669,172.28,172.27,20.3169]
[1730469162254,16.17650669,172.28,172.21,45.21020669]
[1730469162454,16.17650669,172.27,172.22,65.53190669]
[1730469162770,16.17650669,172.28,172.22,65.53190669]
[1730469163073,16.17650669,172.27,172.22,65.53190669]
[1730469163272,16.17650669,172.29,172.23,16.17650669]
[1730469163573,16.17650669,172.28,172.23,16.17650669]
[1730469163951,16.17650669,172.28,172.22,65.53190669]
[1730469164253,16.17650669,172.27,172.22,49.3554]
[1730469164455,16.17650669,172.28,172.22,65.53190669]
[1730469164957,16.17650669,172.3,172.24,16.17650669]
[1730469165159,16.17650669,172.29,172.24,16.17650669]
[1730469165364,16.17650669,172.29,172.23,16.17650669]
[1730469165573,16.17650669,172.3,172.24,16.17650669]
[1730469165874,16.17650669,172.3,172.25,16.17650669]
[1730469166181,16.17650669,172.31,172.26,16.17650669]
[1730469166474,6.0494,172.36,172.28,36.49220669]
[1730469166475,16.17650669,172.33,172.28,36.49220669]
[1730469166853,16.17650669,172.34,172.29,16.17650669]
[1730469167052,16.17650669,172.35,172.29,16.17650669]
[1730469167255,16.17650669,172.34,172.29,16.17650669]
[1730469167774,16.17650669,172.34,172.28,65.51470669]
[1730469169156,0.58565154,172.37,172.28,65.51470669]
[1730469169157,16.17650669,172.33,172.28,65.51470669]
[1730469169353,16.17650669,172.31,172.28,49.3382]
[1730469169585,16.17650669,172.33,172.28,65.51470669]
[1730469169873,16.17890483,172.35,172.29,16.17890483]
[1730469170083,16.17890483,172.34,172.29,16.17890483]
[1730469170255,16.17890483,172.34,172.28,65.51710483]
[1730469171368,16.17890483,172.34,172.29,16.17890483]
[1730469172271,16.17890483,172.35,172.3,16.17890483]
[1730469172480,16.76455637,172.37,172.32,16.17890483]
[1730469172659,0.58565154,172.37,172.32,16.17890483]
[1730469172861,16.76455637,172.37,172.33,20.3098]
[1730469173970,16.76455637,172.37,172.33,49.3239]
[1730469174282,0.58565154,172.37,172.33,49.3239]
[1730469174784,16.76455637,172.37,172.33,49.3239]
[1730469174966,0.58565154,172.37,172.33,65.50280483]
[1730469177781,0.58565154,172.37,172.35,16.17890483]
[1730469178285,0.58565154,172.37,172.33,49.3239]
[1730469178286,0.58565154,172.37,172.34,16.17890483]
[1730469178969,0.58565154,172.37,172.33,65.50280483]
[1730469180488,0.58565154,172.37,172.33,59.43103877]
[1730469181086,0.58565154,172.37,172.36,10.10713877]
[1730469181709,0.58565154,172.37,172.36,15.90893877]
[1730469182771,0.58565154,172.37,172.36,21.96734031]
[1730469183188,6.5858,172.57,172.37,44.027864]
[1730469183483,16.41554031,172.52,172.46,16.16554031]
[1730469184468,16.16554031,172.51,172.45,16.16554031]
[1730469184868,16.16554031,172.49,172.43,16.16554031]
[1730469185391,16.16554031,172.49,172.44,20.2968]
[1730469185971,16.16554031,172.47,172.44,14.4977]
[1730469186293,16.16554031,172.46,172.42,5.7997]
[1730469186597,16.16554031,172.45,172.4,14.5004]
[1730469186769,16.16554031,172.44,172.4,14.5004]
[1730469187283,16.16554031,172.41,172.37,5.8014]
[1730469187588,16.16554031,172.4,172.35,5.802]
[1730469187768,16.16554031,172.39,172.35,5.802]
[1730469187964,16.16554031,172.39,172.34,5.8024]
[1730469188272,16.16554031,172.39,172.34,21.96794031]
[1730469188771,16.16554031,172.38,172.34,20.3086]
[1730469189178,16.16554031,172.39,172.34,36.47414031]
[1730469189384,0.25098,172.47,172.31,16.3076]
[1730469189385,16.16554031,172.36,172.31,30.67414031]
[1730469189587,16.16554031,172.37,172.32,16.16554031]
[1730469190476,16.16554031,172.33,172.28,16.16554031]
[1730469190685,16.16554031,172.35,172.3,16.16554031]
[1730469191088,0.12549,172.36,172.31,16.16554031]
[1730469191383,16.16554031,172.38,172.33,16.16554031]
[1730469191592,16.16554031,172.39,172.34,16.16554031]
[1730469191771,6.6053,172.4,172.34,16.16554031]
[1730469191772,22.77084031,172.4,172.34,16.16554031]
[1730469191964,0.12549,172.39,172.34,16.16554031]
[1730469192171,22.77084031,172.4,172.35,16.16554031]
[1730469192473,22.77084031,172.4,172.3,30.67434031]
[1730469192474,22.77084031,172.4,172.34,16.16554031]
[1730469193084,16.16554031,172.39,172.33,16.16554031]
[1730469193392,16.16554031,172.39,172.3,14.5088]
[1730469193393,16.16554031,172.36,172.31,16.16554031]
[1730469193698,16.16554031,172.37,172.32,16.16554031]
[1730469194405,16.16554031,172.33,172.28,6.05940554]
[1730469194612,16.16554031,172.3,172.26,14.5121]
[1730469194894,0.12549,172.31,172.26,36.48274031]
[1730469195095,0.12549,172.32,172.27,16.16554031]
[1730469195485,16.16554031,172.32,172.27,16.16554031]
[1730469195872,0.12549,172.31,172.27,16.16554031]
[1730469196271,0.12549,172.31,172.26,20.3172]
[1730469196272,16.16554031,172.31,172.26,30.67764031]
[1730469196724,16.16554031,172.28,172.23,22.22740217]
[1730469197007,0.25098,172.34,172.24,16.16554031]
[1730469197008,16.16554031,172.3,172.24,16.16554031]
[1730469197886,16.29103031,172.29,172.24,16.16554031]
[1730469198095,16.16554031,172.29,172.24,16.16554031]
[1730469198296,0.12549,172.34,172.28,16.16554031]
[1730469198297,16.16554031,172.34,172.28,16.16554031]
[1730469198793,16.16554031,172.33,172.28,16.16554031]
[1730469199003,16.16554031,172.32,172.27,16.16554031]
[1730469199198,16.16554031,172.33,172.28,16.16554031]
[1730469199378,0.12549,172.3,172.25,16.16554031]
[1730469199579,0.12549,172.29,172.25,16.16554031]
[1730469200004,5.8024,172.35,172.21,6.06167216]
[1730469200005,16.16554031,172.27,172.22,16.16554031]
[1730469200176,16.16554031,172.29,172.24,16.16554031]
[1730469200376,0.12549,172.29,172.24,16.16554031]
[1730469201398,16.16554031,172.31,172.26,16.16554031]
[1730469201605,16.16554031,172.32,172.26,16.16554031]